[Event "Open NK Rapid 2025 bord 26-50"]
[Site "Helmond, Netherlands"]
[Date "2025.05.03"]
[Round "4.21"]
[White "De Oude, Sybe"]
[Black "Blok, Lukas"]
[Result "0-1"]
[TimeControl "15 min +5 sec increment"]
[WhiteFideId "40110052"]
[BlackFideId "40110494"]
[WhiteElo "1914"]
[BlackElo "1741"]

1. e4 {[%clk 00:15:08]} {[%emt 00:00:02]} d6 {[%clk 00:15:09]} {[%emt
00:00:02]} 2. Nc3 {[%clk 00:15:06]} {[%emt 00:00:07]} Nf6 {[%clk 00:15:13]}
{[%emt 00:00:01]} 3. f4 {[%clk 00:15:09]} {[%emt 00:00:02]} g6 {[%clk
00:15:15]} {[%emt 00:00:03]} 4. Nf3 {[%clk 00:15:12]} {[%emt 00:00:02]} Bg7
{[%clk 00:15:19]} {[%emt 00:00:01]} 5. Bc4 {[%clk 00:15:14]} {[%emt 00:00:03]}
O-O {[%clk 00:15:22]} {[%emt 00:00:02]} 6. d3 {[%clk 00:15:15]} {[%emt
00:00:04]} c5 {[%clk 00:15:26]} {[%emt 00:00:01]} 7. O-O {[%clk 00:15:13]}
{[%emt 00:00:07]} a6 {[%clk 00:15:30]} {[%emt 00:00:01]} 8. a4 {[%clk
00:15:14]} {[%emt 00:00:04]} Nc6 {[%clk 00:15:18]} {[%emt 00:00:16]} 9. Qe1
{[%clk 00:15:04]} {[%emt 00:00:16]} e5 {[%clk 00:14:37]} {[%emt 00:00:46]} 10.
Qh4 {[%clk 00:13:59]} {[%emt 00:01:10]} Nh5 {[%clk 00:13:39]} {[%emt 00:01:03]}
11. Qxd8 {[%clk 00:12:37]} {[%emt 00:01:27]} Rxd8 {[%clk 00:13:28]} {[%emt
00:00:16]} 12. fxe5 {[%clk 00:12:32]} {[%emt 00:00:10]} Nxe5 {[%clk 00:08:57]}
{[%emt 00:04:35]} 13. Nxe5 {[%clk 00:12:24]} {[%emt 00:00:14]} Bxe5 {[%clk
00:08:47]} {[%emt 00:00:15]} 14. Bxf7+ {[%clk 00:11:47]} {[%emt 00:00:42]} Kg7
{[%clk 00:08:41]} {[%emt 00:00:10]} 15. Bg5 {[%clk 00:11:04]} {[%emt 00:00:49]}
Nf6 {[%clk 00:08:02]} {[%emt 00:00:44]} 16. Bd5 {[%clk 00:10:09]} {[%emt
00:00:59]} Rb8 {[%clk 00:07:50]} {[%emt 00:00:18]} 17. h3 {[%clk 00:09:08]}
{[%emt 00:01:06]} h6 {[%clk 00:07:10]} {[%emt 00:00:45]} 18. Bxf6+ {[%clk
00:08:07]} {[%emt 00:01:06]} Bxf6 {[%clk 00:07:14]} {[%emt 00:00:02]} 19. Rf3
{[%clk 00:07:57]} {[%emt 00:00:14]} b5 {[%clk 00:07:02]} {[%emt 00:00:17]} 20.
axb5 {[%clk 00:07:50]} {[%emt 00:00:12]} axb5 {[%clk 00:07:06]} 21. Raf1 {[%clk
00:06:42]} {[%emt 00:01:13]} Rf8 {[%clk 00:06:46]} {[%emt 00:00:24]} 22. Bc6
{[%clk 00:05:55]} {[%emt 00:00:53]} b4 {[%clk 00:05:09]} {[%emt 00:01:43]} 23.
Nd1 {[%clk 00:05:18]} {[%emt 00:00:41]} Be6 {[%clk 00:03:56]} {[%emt 00:01:17]}
24. b3 {[%clk 00:05:09]} {[%emt 00:00:15]} Rb6 {[%clk 00:03:33]} {[%emt
00:00:28]} 25. Bd5 {[%clk 00:04:57]} {[%emt 00:00:17]} Bxd5 {[%clk 00:03:32]}
{[%emt 00:00:07]} 26. exd5 {[%clk 00:05:00]} {[%emt 00:00:01]} Ra6 {[%emt
00:00:11]} 27. Ne3 {[%clk 00:04:46]} {[%emt 00:00:18]} Ra2 {[%clk 00:02:32]}
{[%emt 00:01:00]} 28. Kh1 {[%clk 00:04:38]} {[%emt 00:00:13]} h5 {[%clk
00:02:10]} {[%emt 00:00:28]} 29. g4 {[%clk 00:04:24]} {[%emt 00:00:19]} hxg4
{[%clk 00:01:55]} {[%emt 00:00:20]} 30. Nxg4 {[%clk 00:04:08]} {[%emt
00:00:20]} Be7 {[%clk 00:01:59]} 31. Rxf8 {[%clk 00:04:08]} {[%emt 00:00:05]}
Bxf8 {[%clk 00:02:03]} {[%emt 00:00:01]} 32. Rf2 {[%clk 00:04:06]} {[%emt
00:00:07]} Ra1+ {[%clk 00:02:00]} {[%emt 00:00:08]} 33. Kg2 {[%clk 00:04:10]}
{[%emt 00:00:01]} Re1 {[%clk 00:01:55]} {[%emt 00:00:10]} 34. Nf6 {[%clk
00:04:06]} {[%emt 00:00:08]} Re5 {[%clk 00:01:04]} {[%emt 00:00:56]} 35. Nd7
{[%clk 00:02:56]} {[%emt 00:01:16]} Rg5+ {[%clk 00:01:06]} {[%emt 00:00:02]} 36.
Kf1 {[%clk 00:02:56]} {[%emt 00:00:05]} Be7 {[%clk 00:00:47]} {[%emt 00:00:25]}
37. Re2 {[%clk 00:02:55]} {[%emt 00:00:06]} Rf5+ {[%clk 00:00:46]} {[%emt
00:00:06]} 38. Kg2 {[%clk 00:02:54]} {[%emt 00:00:06]} Rg5+ {[%clk 00:00:49]}
{[%emt 00:00:03]} 39. Kf3 {[%clk 00:02:53]} {[%emt 00:00:05]} Rf5+ {[%clk
00:00:52]} {[%emt 00:00:02]} 40. Kg4 {[%clk 00:02:53]} {[%emt 00:00:04]} Rg5+
{[%clk 00:00:54]} {[%emt 00:00:04]} 41. Kf4 {[%clk 00:02:56]} {[%emt 00:00:01]}
Rf5+ {[%clk 00:00:58]} {[%emt 00:00:02]} 42. Kg3 {[%clk 00:02:35]} {[%emt
00:00:27]} Rg5+ {[%clk 00:01:01]} {[%emt 00:00:01]} 43. Kf2 {[%clk 00:02:37]}
{[%emt 00:00:03]} Rf5+ {[%clk 00:01:04]} {[%emt 00:00:02]} 44. Kg2 {[%clk
00:02:22]} {[%emt 00:00:19]} Rg5+ {[%clk 00:01:05]} {[%emt 00:00:05]} 45. Kh2
{[%clk 00:02:26]} {[%emt 00:00:01]} Kf7 {[%clk 00:01:00]} {[%emt 00:00:09]} 46.
Rf2+ {[%clk 00:02:22]} {[%emt 00:00:10]} Kg7 {[%clk 00:01:03]} {[%emt
00:00:02]} 47. Nb6 {[%clk 00:02:20]} {[%emt 00:00:08]} Bd8 {[%clk 00:00:58]}
{[%emt 00:00:09]} 48. Nc4 {[%clk 00:02:15]} {[%emt 00:00:10]} Rxd5 {[%clk
00:01:02]} 49. Re2 {[%clk 00:02:08]} {[%emt 00:00:11]} Kf7 {[%clk 00:00:56]}
{[%emt 00:00:13]} 50. Kg3 {[%clk 00:02:10]} {[%emt 00:00:02]} Rg5+ {[%clk
00:00:59]} {[%emt 00:00:02]} 51. Kf3 {[%clk 00:02:12]} {[%emt 00:00:03]} Rf5+
{[%clk 00:01:03]} {[%emt 00:00:02]} 52. Kg3 {[%clk 00:01:49]} {[%emt 00:00:27]}
Rg5+ {[%clk 00:01:03]} {[%emt 00:00:05]} 53. Kh2 {[%clk 00:01:53]} Be7 {[%clk
00:01:00]} {[%emt 00:00:08]} 54. Nd2 {[%clk 00:01:39]} {[%emt 00:00:20]} Rf5
{[%clk 00:00:33]} {[%emt 00:00:33]} 55. Ne4 {[%clk 00:01:41]} {[%emt 00:00:02]}
d5 {[%clk 00:00:33]} {[%emt 00:00:05]} 56. Nf2 {[%clk 00:01:38]} {[%emt
00:00:08]} Bd6+ {[%clk 00:00:35]} {[%emt 00:00:03]} 57. Kg2 {[%clk 00:01:42]}
{[%emt 00:00:01]} Rg5+ {[%clk 00:00:38]} {[%emt 00:00:02]} 58. Ng4 {[%clk
00:01:45]} Rh5 {[%clk 00:00:23]} {[%emt 00:00:21]} 59. Rf2+ {[%clk 00:01:45]}
{[%emt 00:00:05]} Kg7 {[%clk 00:00:25]} {[%emt 00:00:03]} 60. Rf6 {[%clk
00:01:44]} {[%emt 00:00:06]} Be7 {[%clk 00:00:20]} {[%emt 00:00:11]} 61. Rc6
{[%clk 00:01:47]} {[%emt 00:00:01]} Rf5 {[%clk 00:00:21]} {[%emt 00:00:04]} 62.
Rc7 {[%clk 00:01:46]} {[%emt 00:00:06]} Kf8 {[%clk 00:00:21]} {[%emt 00:00:05]}
63. Rd7 {[%clk 00:01:44]} {[%emt 00:00:07]} Ke8 {[%clk 00:00:13]} {[%emt
00:00:13]} 64. Ra7 {[%clk 00:01:46]} {[%emt 00:00:03]} Kf8 {[%clk 00:00:17]} 65.
Ne3 {[%clk 00:01:47]} {[%emt 00:00:03]} Rg5+ {[%clk 00:00:20]} {[%emt
00:00:03]} 66. Kf3 {[%clk 00:01:51]} {[%emt 00:00:01]} Rh5 {[%clk 00:00:23]}
{[%emt 00:00:02]} 67. Kg4 {[%clk 00:01:50]} {[%emt 00:00:06]} Re5 {[%clk
00:00:26]} {[%emt 00:00:03]} 68. Kf4 {[%clk 00:01:44]} {[%emt 00:00:11]} Rh5
{[%clk 00:00:19]} {[%emt 00:00:11]} 69. Kg4 {[%clk 00:01:13]} {[%emt 00:00:36]}
Re5 {[%clk 00:00:22]} {[%emt 00:00:02]} 70. Kf3 {[%clk 00:01:13]} {[%emt
00:00:05]} c4 {[%clk 00:00:23]} {[%emt 00:00:05]} 71. dxc4 {[%clk 00:01:11]}
{[%emt 00:00:07]} Rxe3+ {[%clk 00:00:27]} {[%emt 00:00:01]} 72. Kf4 {[%clk
00:00:13]} {[%emt 00:01:02]} Re4+ {[%clk 00:00:30]} {[%emt 00:00:02]} 73. Kf3
{[%clk 00:00:16]} {[%emt 00:00:02]} Re3+ {[%clk 00:00:25]} {[%emt 00:00:11]} 74.
Kf4 {[%clk 00:00:18]} {[%emt 00:00:02]} Rxh3 {[%clk 00:00:21]} {[%emt
00:00:10]} 75. cxd5 {[%clk 00:00:18]} {[%emt 00:00:05]} Rc3 {[%clk 00:00:21]}
{[%emt 00:00:05]} 76. Ra2 {[%clk 00:00:12]} {[%emt 00:00:10]} Rc5 {[%clk
00:00:20]} {[%emt 00:00:06]} 77. Ke4 {[%clk 00:00:16]} {[%emt 00:00:02]} g5
{[%clk 00:00:18]} {[%emt 00:00:06]} 78. Kd4 {[%clk 00:00:18]} {[%emt 00:00:03]}
Rc3 {[%clk 00:00:20]} {[%emt 00:00:03]} 79. Ra8+ {[%clk 00:00:21]} {[%emt
00:00:02]} Kf7 {[%clk 00:00:24]} {[%emt 00:00:01]} 80. Ra1 {[%clk 00:00:22]}
{[%emt 00:00:04]} Rxc2 {[%clk 00:00:27]} {[%emt 00:00:03]} 81. Rf1+ {[%clk
00:00:23]} {[%emt 00:00:04]} Kg6 {[%clk 00:00:30]} {[%emt 00:00:01]} 82. Ke5
{[%clk 00:00:24]} {[%emt 00:00:04]} Re2+ {[%clk 00:00:31]} {[%emt 00:00:04]} 83.
Kd4 {[%clk 00:00:28]} {[%emt 00:00:02]} Bf6+ {[%clk 00:00:33]} {[%emt
00:00:02]} 84. Kc4 {[%clk 00:00:31]} {[%emt 00:00:02]} Re4+ {[%clk 00:00:35]}
{[%emt 00:00:03]} 85. Kc5 {[%clk 00:00:35]} {[%emt 00:00:01]} Re5 {[%clk
00:00:29]} {[%emt 00:00:11]} 86. Kc6 {[%clk 00:00:33]} {[%emt 00:00:07]} Be7
{[%clk 00:00:29]} {[%emt 00:00:05]} 87. Rd1 {[%clk 00:00:24]} {[%emt 00:00:14]}
Re3 {[%clk 00:00:20]} {[%emt 00:00:15]} 88. d6 {[%clk 00:00:26]} {[%emt
00:00:02]} Rc3+ {[%clk 00:00:21]} {[%emt 00:00:03]} 89. Kb5 {[%clk 00:00:26]}
{[%emt 00:00:06]} Bd8 {[%clk 00:00:17]} {[%emt 00:00:09]} 90. Kxb4 {[%clk
00:00:29]} {[%emt 00:00:02]} Rf3 {[%clk 00:00:17]} {[%emt 00:00:06]} 91. Kc4
{[%clk 00:00:29]} {[%emt 00:00:04]} g4 {[%clk 00:00:21]} {[%emt 00:00:02]} 92.
b4 {[%clk 00:00:12]} {[%emt 00:00:21]} g3 {[%clk 00:00:24]} {[%emt 00:00:02]}
93. Rg1 {[%clk 00:00:14]} {[%emt 00:00:02]} Kf5 {[%clk 00:00:28]} {[%emt
00:00:02]} 94. Kd5 {[%clk 00:00:17]} {[%emt 00:00:03]} Rd3+ {[%clk 00:00:31]}
{[%emt 00:00:02]} 95. Kc6 {[%clk 00:00:18]} {[%emt 00:00:03]} Kf4 {[%clk
00:00:30]} {[%emt 00:00:07]} 96. b5 {[%clk 00:00:20]} {[%emt 00:00:03]} Kf3
{[%clk 00:00:33]} {[%emt 00:00:02]} 97. b6 {[%clk 00:00:22]} {[%emt 00:00:02]}
Bxb6 {[%clk 00:00:37]} 98. Kxb6 {[%clk 00:00:08]} {[%emt 00:00:20]} Rxd6+
{[%clk 00:00:41]} {[%emt 00:00:01]} 99. Kc5 {[%clk 00:00:12]} Rd2 {[%clk
00:00:44]} 100. Rf1+ {[%clk 00:00:16]} {[%emt 00:00:01]} Rf2 {[%clk 00:00:48]}
101. Rc1 {[%clk 00:00:19]} {[%emt 00:00:01]} g2 {[%emt 00:00:09]} 102. Rc3+
{[%clk 00:00:21]} Kg4 {[%clk 00:00:51]} 103. Rc4+ {[%clk 00:00:15]} {[%emt
00:00:12]} Kh3 {[%clk 00:00:56]} 104. Rc3+ {[%clk 00:00:15]} {[%emt 00:00:04]}
Kh2 {[%clk 00:01:00]} 105. Kd4 {[%clk 00:00:19]} {[%emt 00:00:02]} g1=Q {[%clk
00:01:02]} {[%emt 00:00:03]} 106. Ke4 {[%clk 00:00:21]} {[%emt 00:00:03]} Re2+
{[%clk 00:01:05]} {[%emt 00:00:01]} 107. Kd3 {[%clk 00:00:23]} {[%emt
00:00:02]} Re3+ {[%clk 00:01:09]} {[%emt 00:00:02]} 0-1

[Event "Open NK Rapid 2025 bord 26-50"]
[Site "Helmond, Netherlands"]
[Date "2025.05.03"]
[Round "4.22"]
[White "Rohatgi, Kushagra"]
[Black "Jara Segovia, Jesus Javier"]
[Result "0-1"]
[TimeControl "15 min +5 sec increment"]
[WhiteFideId "34603212"]
[BlackFideId "3925439"]
[WhiteElo "1774"]
[BlackElo "1909"]

1. e4 {[%clk 00:15:08]} {[%emt 00:00:01]} Nf6 {[%clk 00:15:09]} {[%emt
00:00:01]} 2. Nc3 {[%clk 00:14:51]} {[%emt 00:00:22]} d5 {[%clk 00:15:13]}
{[%emt 00:00:02]} 3. e5 {[%clk 00:14:11]} {[%emt 00:00:45]} Nfd7 {[%clk
00:15:17]} 4. d4 {[%clk 00:14:02]} {[%emt 00:00:13]} e6 {[%clk 00:15:20]}
{[%emt 00:00:02]} 5. Nf3 {[%clk 00:14:00]} {[%emt 00:00:07]} c5 {[%clk
00:15:23]} {[%emt 00:00:02]} 6. Bf4 {[%clk 00:13:27]} {[%emt 00:00:37]} Nc6
{[%clk 00:15:08]} {[%emt 00:00:21]} 7. Bb5 {[%clk 00:12:50]} {[%emt 00:00:42]}
a6 {[%clk 00:14:53]} {[%emt 00:00:20]} 8. Bxc6 {[%clk 00:12:40]} {[%emt
00:00:15]} bxc6 {[%clk 00:14:56]} {[%emt 00:00:02]} 9. dxc5 {[%clk 00:11:52]}
{[%emt 00:00:54]} Bxc5 {[%clk 00:14:45]} {[%emt 00:00:16]} 10. O-O {[%clk
00:11:29]} {[%emt 00:00:27]} O-O {[%clk 00:14:35]} {[%emt 00:00:15]} 11. Qd2
{[%clk 00:10:16]} {[%emt 00:01:19]} Rb8 {[%clk 00:14:19]} {[%emt 00:00:20]} 12.
Rab1 {[%clk 00:09:54]} {[%emt 00:00:27]} a5 {[%clk 00:14:09]} {[%emt 00:00:16]}
13. Qd3 {[%clk 00:09:14]} {[%emt 00:00:45]} h6 {[%clk 00:13:50]} {[%emt
00:00:23]} 14. Qd2 {[%clk 00:08:25]} {[%emt 00:00:55]} Ba6 {[%clk 00:13:33]}
{[%emt 00:00:21]} 15. Rfd1 {[%clk 00:07:55]} {[%emt 00:00:35]} Kh7 {[%clk
00:13:28]} {[%emt 00:00:09]} 16. Bg3 {[%clk 00:07:01]} {[%emt 00:01:00]} Rg8
{[%clk 00:12:31]} {[%emt 00:01:02]} 17. Ne2 {[%clk 00:06:05]} {[%emt 00:01:00]}
Be7 {[%clk 00:12:06]} {[%emt 00:00:31]} 18. Ned4 {[%clk 00:05:40]} {[%emt
00:00:31]} Qc7 {[%clk 00:12:05]} {[%emt 00:00:05]} 19. c3 {[%clk 00:05:05]}
{[%emt 00:00:40]} Nc5 {[%clk 00:12:01]} {[%emt 00:00:09]} 20. Qc2+ {[%clk
00:04:56]} {[%emt 00:00:15]} g6 {[%clk 00:11:38]} {[%emt 00:00:28]} 21. b4
{[%clk 00:04:22]} {[%emt 00:00:39]} Ne4 {[%clk 00:11:28]} {[%emt 00:00:14]} 22.
bxa5 {[%clk 00:03:58]} {[%emt 00:00:30]} c5 {[%clk 00:11:21]} {[%emt 00:00:12]}
23. Nb3 {[%clk 00:03:11]} {[%emt 00:00:52]} Bb5 {[%clk 00:11:01]} {[%emt
00:00:23]} 24. Nbd2 {[%clk 00:02:40]} {[%emt 00:00:38]} Nxg3 {[%clk 00:10:54]}
{[%emt 00:00:12]} 25. hxg3 {[%clk 00:02:18]} {[%emt 00:00:27]} Qxa5 {[%clk
00:10:55]} {[%emt 00:00:03]} 26. Kh2 {[%clk 00:02:07]} {[%emt 00:00:16]} Ba4
{[%clk 00:10:50]} {[%emt 00:00:10]} 27. Nb3 {[%clk 00:02:11]} {[%emt 00:00:03]}
Qc7 {[%clk 00:10:17]} {[%emt 00:00:36]} 28. Qd2 {[%clk 00:01:56]} {[%emt
00:00:21]} c4 {[%clk 00:10:17]} {[%emt 00:00:04]} 29. Nbd4 {[%clk 00:01:52]}
{[%emt 00:00:09]} Bxd1 {[%clk 00:10:19]} {[%emt 00:00:03]} 30. Rxd1 {[%clk
00:01:46]} {[%emt 00:00:11]} Rb7 {[%emt 00:00:37]} 31. Rh1 {[%clk 00:01:37]}
Rgb8 {[%clk 00:10:01]} {[%emt 00:00:04]} 32. Kg1 {[%clk 00:01:25]} {[%emt
00:00:18]} Rb1+ {[%clk 00:09:46]} {[%emt 00:00:20]} 33. Ne1 {[%clk 00:01:12]}
{[%emt 00:00:18]} Bf8 {[%clk 00:09:47]} {[%emt 00:00:02]} 34. Ndf3 {[%clk
00:00:58]} {[%emt 00:00:20]} R8b2 {[%clk 00:09:26]} {[%emt 00:00:25]} 35. Qe3
{[%clk 00:00:59]} {[%emt 00:00:05]} Qb6 {[%clk 00:08:36]} {[%emt 00:00:54]} 36.
Nd4 {[%clk 00:00:25]} {[%emt 00:00:40]} Rxe1+ {[%clk 00:08:18]} {[%emt
00:00:23]} 37. Qxe1 {[%clk 00:00:18]} {[%emt 00:00:13]} Rb1 {[%clk 00:08:21]}
{[%emt 00:00:02]} 38. Qxb1 {[%clk 00:00:17]} {[%emt 00:00:06]} Qxb1+ {[%clk
00:08:24]} {[%emt 00:00:01]} 39. Kh2 {[%clk 00:00:21]} {[%emt 00:00:02]} Qxa2
{[%clk 00:08:26]} {[%emt 00:00:03]} 40. Rf1 {[%clk 00:00:20]} {[%emt 00:00:06]}
Bc5 {[%clk 00:08:17]} {[%emt 00:00:13]} 41. Kg1 {[%clk 00:00:12]} {[%emt
00:00:14]} Bxd4 {[%clk 00:08:18]} {[%emt 00:00:04]} 42. cxd4 {[%clk 00:00:16]}
c3 {[%clk 00:08:21]} {[%emt 00:00:02]} 43. Rc1 {[%clk 00:00:18]} {[%emt
00:00:03]} c2 {[%clk 00:08:23]} {[%emt 00:00:02]} 44. Kf1 {[%clk 00:00:21]}
{[%emt 00:00:02]} Qb1 {[%clk 00:08:27]} {[%emt 00:00:02]} 45. Rxb1 {[%clk
00:00:20]} {[%emt 00:00:05]} cxb1=Q+ {[%clk 00:08:26]} {[%emt 00:00:06]} 46.
Ke2 {[%clk 00:00:22]} {[%emt 00:00:03]} Qe4+ {[%clk 00:08:28]} {[%emt
00:00:03]} 47. Kd1 {[%clk 00:00:23]} {[%emt 00:00:04]} Qxd4+ {[%clk 00:08:31]}
{[%emt 00:00:03]} 48. Kc1 {[%clk 00:00:27]} Qxf2 {[%clk 00:08:33]} {[%emt
00:00:04]} 49. Kb1 {[%clk 00:00:31]} {[%emt 00:00:01]} d4 {[%clk 00:08:37]} 50.
Ka1 {[%clk 00:00:36]} {[%emt 00:00:01]} d3 {[%clk 00:08:41]} 51. Kb1 {[%clk
00:00:40]} {[%emt 00:00:01]} d2 {[%clk 00:08:34]} {[%emt 00:00:12]} 52. Ka1
{[%clk 00:00:44]} d1=R# {[%clk 00:08:35]} {[%emt 00:00:04]} 0-1

[Event "Open NK Rapid 2025 bord 26-50"]
[Site "Helmond, Netherlands"]
[Date "2025.05.03"]
[Round "4.24"]
[White "Kriens, Hans"]
[Black "Van De Vreede, Adrie"]
[Result "1-0"]
[TimeControl "15 min +5 sec increment"]
[WhiteFideId "1093665"]
[BlackFideId "40107248"]
[WhiteElo "1878"]
[BlackElo "1727"]

1. d4 {[%clk 00:15:08]} {[%emt 00:00:02]} Nf6 {[%clk 00:15:08]} {[%emt
00:00:03]} 2. c4 {[%clk 00:15:08]} {[%emt 00:00:05]} g6 {[%clk 00:15:11]}
{[%emt 00:00:02]} 3. Nc3 {[%clk 00:15:07]} {[%emt 00:00:06]} d5 {[%clk
00:15:14]} {[%emt 00:00:02]} 4. cxd5 {[%clk 00:15:07]} {[%emt 00:00:04]} Nxd5
{[%clk 00:15:18]} {[%emt 00:00:02]} 5. e4 {[%clk 00:15:07]} {[%emt 00:00:05]}
Nxc3 {[%clk 00:15:20]} {[%emt 00:00:02]} 6. bxc3 {[%clk 00:15:08]} {[%emt
00:00:04]} Bg7 {[%clk 00:15:23]} {[%emt 00:00:02]} 7. Bc4 {[%clk 00:15:10]}
{[%emt 00:00:03]} c5 {[%clk 00:15:25]} {[%emt 00:00:04]} 8. Ne2 {[%clk
00:15:11]} {[%emt 00:00:04]} Nc6 {[%clk 00:14:59]} {[%emt 00:00:30]} 9. Be3
{[%clk 00:15:12]} {[%emt 00:00:04]} Bg4 {[%clk 00:15:01]} {[%emt 00:00:03]} 10.
f3 {[%clk 00:15:16]} {[%emt 00:00:02]} Bd7 {[%clk 00:15:04]} {[%emt 00:00:02]}
11. O-O {[%clk 00:15:14]} {[%emt 00:00:07]} O-O {[%clk 00:14:49]} {[%emt
00:00:20]} 12. dxc5 {[%clk 00:12:22]} {[%emt 00:02:57]} Qc7 {[%clk 00:13:20]}
{[%emt 00:01:32]} 13. Bd4 {[%clk 00:10:45]} {[%emt 00:01:43]} Ne5 {[%clk
00:12:09]} {[%emt 00:01:16]} 14. Bd5 {[%clk 00:09:59]} {[%emt 00:00:52]} Bb5
{[%clk 00:11:53]} {[%emt 00:00:21]} 15. c4 {[%clk 00:09:21]} {[%emt 00:00:42]}
Bxc4 {[%clk 00:10:59]} {[%emt 00:00:59]} 16. Bxc4 {[%clk 00:09:22]} {[%emt
00:00:04]} Nxc4 {[%clk 00:11:02]} {[%emt 00:00:02]} 17. Bxg7 {[%clk 00:09:25]}
{[%emt 00:00:02]} Kxg7 {[%clk 00:11:05]} {[%emt 00:00:03]} 18. Qd4+ {[%clk
00:09:28]} {[%emt 00:00:01]} Ne5 {[%clk 00:10:34]} {[%emt 00:00:36]} 19. f4
{[%clk 00:09:32]} {[%emt 00:00:02]} f6 {[%clk 00:08:50]} {[%emt 00:01:49]} 20.
fxe5 {[%clk 00:09:21]} {[%emt 00:00:17]} fxe5 {[%clk 00:08:52]} {[%emt
00:00:02]} 21. Qb4 {[%clk 00:09:16]} {[%emt 00:00:10]} Qd7 {[%clk 00:07:03]}
{[%emt 00:01:54]} 22. Rad1 {[%clk 00:08:29]} {[%emt 00:00:51]} Qg4 {[%clk
00:06:46]} {[%emt 00:00:22]} 23. Ng3 {[%clk 00:07:26]} {[%emt 00:01:08]} Qe6
{[%clk 00:04:56]} {[%emt 00:01:56]} 24. Qxb7 {[%clk 00:06:53]} {[%emt
00:00:38]} Rfb8 {[%clk 00:04:15]} {[%emt 00:00:45]} 25. Qd5 {[%clk 00:06:52]}
{[%emt 00:00:07]} 1-0

[Event "Open NK Rapid 2025 bord 26-50"]
[Site "Helmond, Netherlands"]
[Date "2025.05.03"]
[Round "4.25"]
[White "Cornelissen, Jort"]
[Black "Pol, Nico"]
[Result "0-1"]
[TimeControl "15 min +5 sec increment"]
[WhiteFideId "1098160"]
[BlackFideId "1064002"]
[WhiteElo "1750"]
[BlackElo "1878"]

1. e4 {[%clk 00:15:08]} {[%emt 00:00:01]} d5 {[%clk 00:15:08]} {[%emt
00:00:03]} 2. exd5 {[%clk 00:15:09]} {[%emt 00:00:04]} Nf6 {[%clk 00:15:03]}
{[%emt 00:00:10]} 3. d4 {[%clk 00:15:10]} {[%emt 00:00:04]} Nxd5 {[%clk
00:15:07]} {[%emt 00:00:01]} 4. c4 {[%clk 00:14:55]} {[%emt 00:00:20]} Nb4
{[%clk 00:15:10]} {[%emt 00:00:02]} 5. Na3 {[%clk 00:11:46]} {[%emt 00:03:13]}
e5 {[%clk 00:13:21]} {[%emt 00:01:54]} 6. dxe5 {[%clk 00:08:08]} {[%emt
00:03:45]} Qxd1+ {[%clk 00:13:22]} {[%emt 00:00:04]} 7. Kxd1 {[%clk 00:08:11]}
Bf5 {[%clk 00:12:24]} {[%emt 00:01:03]} 8. f3 {[%clk 00:06:13]} {[%emt
00:02:03]} N8c6 {[%clk 00:12:17]} {[%emt 00:00:12]} 9. g4 {[%clk 00:06:15]}
{[%emt 00:00:03]} O-O-O+ {[%clk 00:12:19]} {[%emt 00:00:03]} 10. Ke1 {[%clk
00:06:04]} {[%emt 00:00:16]} Bc2 {[%clk 00:10:21]} {[%emt 00:02:03]} 11. Bf4
{[%clk 00:05:44]} {[%emt 00:00:24]} Bc5 {[%clk 00:07:38]} {[%emt 00:02:49]} 12.
Rc1 {[%clk 00:04:51]} {[%emt 00:00:58]} Bd3 {[%clk 00:07:22]} {[%emt 00:00:22]}
13. Rc3 {[%clk 00:02:37]} {[%emt 00:02:19]} Rhe8 {[%clk 00:05:12]} {[%emt
00:02:14]} 14. Be2 {[%clk 00:00:24]} {[%emt 00:02:18]} Nxe5 {[%clk 00:04:34]}
{[%emt 00:00:43]} 15. Kf1 {[%clk 00:00:20]} {[%emt 00:00:09]} Bxe2+ {[%clk
00:03:33]} {[%emt 00:01:06]} 16. Nxe2 {[%clk 00:00:22]} {[%emt 00:00:03]} Rd1+
{[%clk 00:03:08]} {[%emt 00:00:30]} 17. Kg2 {[%clk 00:00:18]} {[%emt 00:00:09]}
Rxh1 {[%clk 00:02:58]} {[%emt 00:00:15]} 18. Kxh1 {[%clk 00:00:21]} {[%emt
00:00:02]} Ned3 {[%clk 00:02:47]} {[%emt 00:00:16]} 19. Bg5 {[%clk 00:00:06]}
{[%emt 00:00:20]} Rxe2 {[%clk 00:02:39]} {[%emt 00:00:13]} 20. Nb5 {[%clk
00:00:10]} {[%emt 00:00:01]} Nf2+ {[%clk 00:02:33]} {[%emt 00:00:11]} 21. Kg2
{[%clk 00:00:13]} {[%emt 00:00:02]} Ne4+ {[%clk 00:02:25]} {[%emt 00:00:13]} 22.
Kh3 {[%clk 00:00:16]} {[%emt 00:00:03]} Nxg5+ {[%clk 00:02:10]} {[%emt
00:00:20]} 23. Kh4 {[%clk 00:00:18]} {[%emt 00:00:02]} f6 {[%clk 00:01:54]}
{[%emt 00:00:21]} 24. a3 {[%clk 00:00:21]} {[%emt 00:00:03]} Nc6 {[%clk
00:01:30]} {[%emt 00:00:29]} 25. Rd3 {[%clk 00:00:24]} {[%emt 00:00:01]} Rxh2+
{[%clk 00:01:24]} {[%emt 00:00:11]} 26. Kg3 {[%clk 00:00:28]} {[%emt 00:00:01]}
Rh3+ {[%clk 00:01:28]} 27. Kg2 {[%clk 00:00:32]} {[%emt 00:00:02]} Rxf3 {[%clk
00:01:29]} {[%emt 00:00:04]} 28. Rxf3 {[%clk 00:00:35]} {[%emt 00:00:01]} Nxf3
{[%clk 00:01:33]} {[%emt 00:00:01]} 29. Kxf3 {[%clk 00:00:37]} {[%emt
00:00:02]} Bd4 {[%clk 00:01:32]} {[%emt 00:00:07]} 30. b4 {[%clk 00:00:36]}
{[%emt 00:00:06]} a6 {[%clk 00:01:35]} {[%emt 00:00:03]} 31. Nxd4 {[%clk
00:00:37]} {[%emt 00:00:02]} Nxd4+ {[%clk 00:01:39]} 32. Ke4 {[%clk 00:00:37]}
{[%emt 00:00:07]} Nc2 {[%clk 00:01:43]} {[%emt 00:00:01]} 33. g5 {[%clk
00:00:39]} {[%emt 00:00:03]} fxg5 {[%clk 00:01:47]} {[%emt 00:00:01]} 34. Kf5
{[%clk 00:00:43]} {[%emt 00:00:02]} h6 {[%clk 00:01:51]} 35. Kg6 {[%clk
00:00:46]} {[%emt 00:00:01]} g4 0-1